[Event "II Open Internacional Ateneo Marítimo (60 Aniversario)"]
[Site "C/La reina 68 (Valencia), Spain"]
[Date "2018.09.15"]
[Round "3.2"]
[White "Remolar Gallen, Jose"]
[Black "Cruz Lledo, Pablo"]
[Result "1/2-1/2"]
[TimeControl "7m+3s por jugada"]
[WhiteFideId "2215187"]
[BlackFideId "2297361"]
[WhiteElo "2321"]
[BlackElo "2436"]

1. c4 {[%clk 00:07:05]} {[%emt 00:00:09]} e6 {[%clk 00:07:03]} 2. g3 {[%clk
00:07:06]} {[%emt 00:00:03]} d5 {[%clk 00:07:04]} 3. Nf3 {[%clk 00:07:09]} Nd7
{[%clk 00:07:03]} {[%emt 00:00:04]} 4. cxd5 {[%clk 00:07:02]} {[%emt 00:00:06]}
exd5 {[%clk 00:07:05]} {[%emt 00:00:13]} 5. Bg2 {[%clk 00:07:05]} c6 {[%clk
00:07:04]} 6. O-O {[%clk 00:07:06]} Ngf6 {[%emt 00:00:50]} 7. Nc3 Be7 {[%emt
00:00:08]} 8. d3 {[%clk 00:06:23]} O-O {[%clk 00:07:06]} 9. e4 {[%clk
00:06:25]} {[%emt 00:00:08]} dxe4 {[%clk 00:06:44]} {[%emt 00:00:11]} 10. dxe4
{[%clk 00:06:27]} Nc5 {[%clk 00:06:46]} {[%emt 00:00:39]} 11. Qc2 {[%clk
00:06:15]} Qd3 {[%clk 00:06:44]} 12. Ne1 {[%clk 00:04:51]} {[%emt 00:01:09]}
Qxc2 {[%clk 00:06:36]} {[%emt 00:00:37]} 13. Nxc2 {[%clk 00:04:53]} Be6 {[%clk
00:06:38]} 14. b3 {[%clk 00:04:25]} {[%emt 00:00:14]} Rfd8 {[%clk 00:06:22]}
{[%emt 00:00:24]} 15. f3 {[%clk 00:03:28]} {[%emt 00:00:48]} Ne8 {[%clk
00:05:32]} {[%emt 00:00:56]} 16. Be3 {[%clk 00:03:23]} {[%emt 00:00:13]} Nd3
{[%clk 00:05:29]} {[%emt 00:00:04]} 17. Rad1 {[%clk 00:03:22]} {[%emt
00:00:09]} Bf6 {[%clk 00:05:19]} {[%emt 00:00:05]} 18. Ne2 {[%clk 00:03:20]}
{[%emt 00:00:05]} c5 {[%clk 00:04:45]} {[%emt 00:00:40]} 19. Na3 {[%clk
00:02:54]} {[%emt 00:00:24]} Rac8 {[%clk 00:04:27]} {[%emt 00:00:22]} 20. Nf4
{[%clk 00:02:50]} {[%emt 00:00:05]} Nxf4 {[%clk 00:04:18]} {[%emt 00:00:14]} 21.
gxf4 {[%clk 00:02:47]} {[%emt 00:00:07]} b6 {[%clk 00:03:50]} {[%emt 00:00:43]}
22. f5 {[%clk 00:02:30]} {[%emt 00:00:42]} Bd7 {[%clk 00:03:49]} 23. f4 {[%clk
00:02:29]} Be7 {[%clk 00:03:26]} {[%emt 00:00:07]} 24. Bf3 {[%clk 00:02:11]}
{[%emt 00:00:12]} Bc6 {[%clk 00:03:18]} {[%emt 00:00:13]} 25. Rxd8 {[%clk
00:01:26]} {[%emt 00:01:25]} Rxd8 {[%clk 00:03:12]} 26. e5 {[%clk 00:01:28]}
Bxf3 {[%clk 00:02:53]} {[%emt 00:00:12]} 27. Rxf3 {[%clk 00:01:31]} Nc7 {[%clk
00:02:55]} 28. Rg3 {[%clk 00:01:11]} {[%emt 00:00:05]} f6 {[%clk 00:02:48]}
{[%emt 00:00:10]} 29. Nc4 {[%clk 00:01:08]} {[%emt 00:00:34]} Nd5 {[%clk
00:02:44]} 30. Bd2 {[%clk 00:01:10]} b5 {[%clk 00:02:17]} {[%emt 00:00:18]} 31.
Na5 {[%clk 00:01:08]} Nb6 {[%clk 00:01:40]} {[%emt 00:00:36]} 32. Be3 {[%clk
00:00:45]} {[%emt 00:00:27]} Rd1+ {[%clk 00:01:39]} {[%emt 00:00:18]} 33. Kg2
{[%clk 00:00:47]} Ra1 {[%clk 00:01:29]} {[%emt 00:00:22]} 34. Nc6 {[%clk
00:00:49]} Rxa2+ {[%clk 00:01:30]} {[%emt 00:00:03]} 35. Kh3 {[%clk 00:00:52]}
Nd5 {[%clk 00:01:22]} 36. Nxe7+ {[%clk 00:00:26]} {[%emt 00:00:20]} Nxe7 {[%clk
00:01:24]} 37. Bxc5 {[%clk 00:00:21]} {[%emt 00:00:14]} Nxf5 {[%clk 00:01:25]}
38. Rd3 {[%clk 00:00:23]} fxe5 {[%clk 00:01:17]} {[%emt 00:00:14]} 39. fxe5
{[%clk 00:00:23]} Re2 {[%clk 00:01:19]} 40. Rd5 {[%clk 00:00:12]} {[%emt
00:00:16]} Kf7 {[%clk 00:01:18]} 41. Bxa7 {[%clk 00:00:14]} {[%emt 00:00:04]}
b4 {[%clk 00:01:14]} {[%emt 00:00:05]} 42. Bb8 {[%clk 00:00:14]} {[%emt
00:00:10]} Ke6 {[%clk 00:01:10]} 43. Rb5 {[%clk 00:00:17]} Re3+ {[%clk
00:01:12]} 44. Kg2 {[%clk 00:00:18]} {[%emt 00:00:03]} Rxb3 {[%clk 00:01:14]}
45. Rb6+ {[%clk 00:00:19]} {[%emt 00:00:06]} Kd5 {[%clk 00:01:15]} 46. e6
{[%clk 00:00:20]} h5 {[%clk 00:01:03]} {[%emt 00:00:13]} 47. Bc7 {[%clk
00:00:22]} {[%emt 00:00:18]} g6 {[%clk 00:00:43]} {[%emt 00:00:05]} 48. Bd8
{[%clk 00:00:21]} {[%emt 00:00:39]} Re3 {[%clk 00:00:44]} 49. e7 {[%clk
00:00:15]} {[%emt 00:00:06]} Nxe7 {[%clk 00:00:46]} 50. Bxe7 {[%clk 00:00:15]}
Rxe7 {[%clk 00:00:48]} 51. Rxb4 {[%clk 00:00:18]} Re4 {[%clk 00:00:43]} 52. Rb6
{[%clk 00:00:17]} Rg4+ {[%clk 00:00:45]} {[%emt 00:00:07]} 53. Kf3 {[%clk
00:00:16]} Ke5 {[%clk 00:00:42]} 54. Rb5+ {[%clk 00:00:12]} Kf6 {[%clk
00:00:44]} 55. Rb6+ {[%clk 00:00:15]} {[%emt 00:00:03]} Kg7 {[%clk 00:00:46]}
56. Rb7+ {[%clk 00:00:17]} Kh6 {[%clk 00:00:49]} 57. Rb6 {[%clk 00:00:19]}
{[%emt 00:00:10]} Rg1 {[%clk 00:00:49]} 58. Kf2 {[%clk 00:00:16]} {[%emt
00:00:04]} Rg4 {[%clk 00:00:51]} 59. Kf3 {[%clk 00:00:19]} Kg5 {[%clk
00:00:52]} 60. h3 {[%clk 00:00:10]} {[%emt 00:00:09]} Ra4 {[%clk 00:00:45]}
{[%emt 00:00:27]} 61. Kg3 {[%clk 00:00:10]} {[%emt 00:00:11]} Ra3+ {[%clk
00:00:48]} 62. Kg2 {[%clk 00:00:13]} Rc3 {[%clk 00:00:42]} 63. Rb5+ {[%clk
00:00:15]} Kh4 {[%clk 00:00:36]} {[%emt 00:00:06]} 64. Rb4+ {[%clk 00:00:17]}
Kg5 {[%clk 00:00:38]} 65. Rb5+ {[%clk 00:00:20]} Kh6 {[%clk 00:00:40]} 66. Rb6
{[%clk 00:00:21]} h4 {[%clk 00:00:42]} 67. Rb4 {[%clk 00:00:19]} {[%emt
00:00:11]} Kh5 {[%clk 00:00:43]} 68. Rg4 {[%clk 00:00:16]} {[%emt 00:00:03]} g5
{[%clk 00:00:44]} 69. Kh2 {[%clk 00:00:18]} Kg6 {[%clk 00:00:46]} 70. Kg2
{[%clk 00:00:17]} {[%emt 00:00:06]} Kf5 {[%clk 00:00:48]} 71. Ra4 {[%clk
00:00:18]} Rc2+ {[%clk 00:00:50]} 72. Kg1 {[%clk 00:00:18]} {[%emt 00:00:04]}
Re2 {[%clk 00:00:51]} {[%emt 00:00:15]} 73. Ra5+ {[%clk 00:00:09]} Kf4 {[%clk
00:00:53]} 74. Ra4+ {[%clk 00:00:11]} Re4 {[%clk 00:00:54]} {[%emt 00:00:07]}
75. Ra3 {[%clk 00:00:13]} Re3 {[%clk 00:00:47]} {[%emt 00:00:05]} 76. Ra4+
{[%clk 00:00:15]} {[%emt 00:00:04]} Kf5 {[%clk 00:00:41]} {[%emt 00:00:10]} 77.
Kg2 {[%clk 00:00:18]} Re2+ {[%clk 00:00:39]} {[%emt 00:00:04]} 78. Kg1 {[%clk
00:00:18]} {[%emt 00:00:03]} Kg6 {[%clk 00:00:40]} 79. Kh1 {[%clk 00:00:16]}
{[%emt 00:00:11]} Kf6 {[%clk 00:00:42]} 80. Kg1 Kf5 81. Kh1 {[%clk 00:00:20]}
Re4 {[%clk 00:00:45]} 82. Ra5+ {[%clk 00:00:19]} {[%emt 00:00:08]} Kf4 {[%clk
00:00:48]} 83. Ra3 {[%clk 00:00:20]} {[%emt 00:00:12]} Re3 {[%clk 00:00:49]} 84.
Ra4+ {[%clk 00:00:15]} Kg3 {[%clk 00:00:51]} 85. Rg4+ {[%clk 00:00:17]} Kxh3
{[%clk 00:00:52]} 86. Rxg5 {[%clk 00:00:19]} Re2 {[%clk 00:00:41]} {[%emt
00:00:51]} 87. Rg2 {[%clk 00:00:19]} Re8 {[%clk 00:00:39]} 88. Rg1 {[%clk
00:00:16]} Re7 {[%clk 00:00:39]} 89. Rg2 {[%clk 00:00:14]} {[%emt 00:00:08]}
Re1+ {[%clk 00:00:41]} 90. Rg1 {[%clk 00:00:16]} Re4 {[%clk 00:00:43]} 91. Rg2
{[%clk 00:00:16]} Re1+ {[%clk 00:00:45]} 92. Rg1 {[%clk 00:00:18]} Re3 {[%clk
00:00:48]} 93. Rg2 {[%clk 00:00:16]} Rg3 {[%clk 00:00:50]} {[%emt 00:00:04]} 94.
Rh2+ {[%clk 00:00:08]} Kg4 {[%clk 00:00:51]} 95. Ra2 {[%clk 00:00:10]} Kh3
{[%clk 00:00:47]} {[%emt 00:00:06]} 96. Rh2+ {[%clk 00:00:12]} {[%emt
00:00:09]} Kg4 {[%clk 00:00:49]} 97. Ra2 {[%clk 00:00:14]} Rd3 {[%clk
00:00:48]} 98. Kh2 {[%clk 00:00:12]} {[%emt 00:00:03]} Rd4 {[%clk 00:00:50]} 99.
Rf2 {[%clk 00:00:13]} {[%emt 00:00:03]} Rd3 {[%clk 00:00:50]} {[%emt 00:00:03]}
100. Rg2+ {[%clk 00:00:13]} {[%emt 00:00:08]} Kf4 {[%clk 00:00:52]} 101. Rf2+
{[%clk 00:00:15]} Kg4 {[%clk 00:00:53]} 102. Rg2+ {[%clk 00:00:17]} Kh5 {[%clk
00:00:55]} 103. Ra2 {[%emt 00:00:03]} Kg4 {[%clk 00:00:54]} {[%emt 00:00:04]}
104. Ra4+ {[%clk 00:00:18]} {[%emt 00:00:03]} Kg5 {[%clk 00:00:55]} {[%emt
00:00:08]} 1/2-1/2

[Event "II Open Internacional Ateneo Marítimo (60 Aniversario)"]
[Site "C/La reina 68 (Valencia), Spain"]
[Date "2018.09.15"]
[Round "3.3"]
[White "Campos Gambuti, Luis Maria"]
[Black "Torres Sanchez, Jose"]
[Result "1-0"]
[TimeControl "7m+3s por jugada"]
[WhiteFideId "2226979"]
[BlackFideId "2217210"]
[WhiteElo "2382"]
[BlackElo "2290"]

1. d4 {[%clk 00:07:05]} d6 {[%clk 00:07:04]} {[%emt 00:00:08]} 2. Nf3 {[%clk
00:07:05]} g6 {[%clk 00:07:00]} {[%emt 00:00:10]} 3. g3 {[%clk 00:07:07]} Bg7
{[%clk 00:07:01]} 4. Bg2 {[%clk 00:07:09]} f5 {[%clk 00:07:01]} {[%emt
00:00:04]} 5. O-O {[%clk 00:07:08]} {[%emt 00:00:06]} Nf6 {[%clk 00:07:03]} 6.
b3 {[%clk 00:07:09]} O-O {[%clk 00:07:04]} {[%emt 00:00:04]} 7. Bb2 {[%clk
00:07:11]} Ne4 {[%clk 00:06:53]} {[%emt 00:00:12]} 8. e3 {[%clk 00:07:01]}
{[%emt 00:00:12]} Nc6 {[%clk 00:06:41]} {[%emt 00:00:15]} 9. Na3 {[%clk
00:06:48]} {[%emt 00:00:15]} e6 {[%clk 00:06:27]} {[%emt 00:00:18]} 10. Nd2
{[%clk 00:06:36]} {[%emt 00:00:15]} d5 {[%clk 00:06:17]} {[%emt 00:00:22]} 11.
c4 {[%clk 00:06:21]} {[%emt 00:00:09]} Ne7 {[%clk 00:06:03]} {[%emt 00:00:17]}
12. Nc2 {[%clk 00:06:11]} {[%emt 00:00:13]} c5 {[%clk 00:05:40]} {[%emt
00:00:30]} 13. cxd5 {[%clk 00:05:33]} {[%emt 00:00:40]} exd5 {[%clk 00:05:38]}
{[%emt 00:00:09]} 14. Nxe4 {[%clk 00:05:06]} {[%emt 00:00:27]} fxe4 {[%clk
00:05:21]} {[%emt 00:00:16]} 15. Rb1 {[%clk 00:04:58]} {[%emt 00:00:10]} b6
{[%clk 00:05:17]} {[%emt 00:00:11]} 16. dxc5 {[%clk 00:04:59]} bxc5 {[%clk
00:05:08]} {[%emt 00:00:10]} 17. Bxg7 {[%clk 00:04:59]} {[%emt 00:00:06]} Kxg7
{[%clk 00:05:09]} 18. b4 {[%clk 00:05:01]} {[%emt 00:00:04]} Ba6 {[%clk
00:04:17]} {[%emt 00:00:51]} 19. b5 {[%clk 00:04:48]} {[%emt 00:00:16]} Bb7 20.
Qd2 Qc7 {[%clk 00:03:39]} {[%emt 00:00:52]} 21. f3 {[%clk 00:04:50]} exf3
{[%clk 00:03:35]} {[%emt 00:00:08]} 22. Bxf3 {[%clk 00:04:51]} Qe5 {[%clk
00:03:27]} {[%emt 00:00:13]} 23. a4 {[%clk 00:03:58]} {[%emt 00:00:50]} Rad8
{[%clk 00:03:06]} {[%emt 00:00:30]} 24. Bg2 {[%clk 00:03:48]} {[%emt 00:00:09]}
Nf5 {[%clk 00:02:52]} {[%emt 00:00:24]} 25. Rbe1 {[%clk 00:03:19]} {[%emt
00:00:28]} Nd6 {[%clk 00:02:48]} {[%emt 00:00:04]} 26. Qa5 {[%clk 00:03:15]}
{[%emt 00:00:06]} Rxf1+ {[%clk 00:01:57]} {[%emt 00:00:57]} 27. Rxf1 {[%clk
00:03:16]} Rd7 {[%clk 00:01:58]} {[%emt 00:00:09]} 28. Qxa7 {[%clk 00:03:03]}
{[%emt 00:00:13]} Qc3 {[%clk 00:01:57]} 29. Qb8 {[%clk 00:02:39]} {[%emt
00:00:26]} Nf7 {[%clk 00:01:58]} 30. Qe8 {[%clk 00:02:30]} {[%emt 00:00:17]}
Rc7 {[%clk 00:01:43]} {[%emt 00:00:23]} 31. b6 {[%clk 00:02:24]} {[%emt
00:00:05]} 1-0

[Event "II Open Internacional Ateneo Marítimo (60 Aniversario)"]
[Site "C/La reina 68 (Valencia), Spain"]
[Date "2018.09.15"]
[Round "3.4"]
[White "Ibanez Aullana, Ramon"]
[Black "Granero Roca, Antonio"]
[Result "0-1"]
[TimeControl "7m+3s por jugada"]
[WhiteFideId "2207532"]
[BlackFideId "2210509"]
[WhiteElo "2301"]
[BlackElo "2370"]

1. e4 {[%clk 00:07:05]} c6 {[%clk 00:07:04]} {[%emt 00:00:20]} 2. d4 {[%clk
00:06:59]} {[%emt 00:00:03]} d5 {[%clk 00:07:05]} 3. Nd2 {[%clk 00:07:00]} dxe4
{[%clk 00:07:06]} 4. Nxe4 {[%clk 00:07:02]} Bf5 {[%clk 00:07:08]} {[%emt
00:00:03]} 5. Ng3 {[%clk 00:07:04]} Bg6 {[%clk 00:07:10]} 6. h4 {[%clk
00:07:05]} h6 {[%clk 00:07:11]} 7. Nf3 {[%clk 00:07:06]} Nd7 {[%clk 00:07:13]}
{[%emt 00:00:12]} 8. h5 {[%clk 00:07:07]} Bh7 {[%clk 00:07:14]} 9. Bd3 {[%clk
00:07:09]} Bxd3 {[%clk 00:07:14]} {[%emt 00:00:09]} 10. Qxd3 {[%clk 00:07:10]}
e6 {[%clk 00:07:13]} 11. Bd2 {[%clk 00:07:08]} {[%emt 00:00:03]} Qc7 {[%clk
00:07:13]} 12. Ne4 {[%clk 00:06:49]} {[%emt 00:00:41]} Ngf6 {[%clk 00:07:15]}
13. O-O-O {[%clk 00:06:36]} {[%emt 00:00:09]} O-O-O {[%clk 00:07:15]} 14. Nxf6
{[%clk 00:06:32]} Nxf6 {[%clk 00:07:09]} {[%emt 00:00:06]} 15. Qe2 {[%clk
00:04:18]} {[%emt 00:02:19]} Bd6 {[%clk 00:07:06]} {[%emt 00:00:07]} 16. c4
{[%clk 00:04:09]} {[%emt 00:00:09]} Bf4 {[%clk 00:07:04]} {[%emt 00:00:14]} 17.
Kb1 {[%clk 00:04:01]} {[%emt 00:00:22]} Bxd2 {[%clk 00:07:04]} 18. Rxd2 {[%clk
00:04:02]} c5 {[%clk 00:07:02]} 19. Rhd1 {[%clk 00:03:58]} {[%emt 00:00:03]}
Nxh5 {[%clk 00:06:49]} {[%emt 00:00:18]} 20. Ne5 {[%clk 00:03:48]} {[%emt
00:00:17]} Nf6 {[%clk 00:06:33]} {[%emt 00:00:14]} 21. dxc5 {[%clk 00:03:43]}
{[%emt 00:00:07]} Rxd2 {[%clk 00:06:23]} {[%emt 00:00:31]} 22. Rxd2 {[%clk
00:03:45]} Rd8 {[%clk 00:06:18]} 23. Rxd8+ {[%clk 00:03:38]} Kxd8 {[%clk
00:06:19]} {[%emt 00:00:11]} 24. b4 {[%clk 00:03:34]} Ke7 {[%clk 00:06:15]}
{[%emt 00:00:03]} 25. f4 {[%clk 00:03:30]} {[%emt 00:00:07]} Nd7 {[%clk
00:05:58]} {[%emt 00:00:16]} 26. Kb2 {[%clk 00:02:29]} {[%emt 00:01:40]} Nxe5
{[%clk 00:05:53]} 27. fxe5 {[%clk 00:02:31]} Qd7 {[%clk 00:05:47]} 28. Kb3
{[%clk 00:02:31]} f6 {[%clk 00:05:06]} {[%emt 00:00:29]} 29. b5 {[%clk
00:01:56]} {[%emt 00:00:38]} Qd4 {[%clk 00:03:48]} {[%emt 00:01:27]} 30. exf6+
{[%clk 00:01:56]} gxf6 {[%clk 00:03:48]} {[%emt 00:00:03]} 31. Qf3 {[%clk
00:01:27]} {[%emt 00:00:29]} Qxc5 {[%clk 00:03:18]} {[%emt 00:00:33]} 32. Qxb7+
{[%clk 00:01:28]} {[%emt 00:00:11]} Kd6 {[%clk 00:03:14]} 33. Qf3 {[%clk
00:01:28]} a5 {[%clk 00:02:31]} {[%emt 00:00:47]} 34. bxa6 {[%clk 00:01:13]}
{[%emt 00:00:34]} Qb6+ {[%clk 00:02:33]} 35. Kc3 {[%clk 00:01:06]} Qa5+ {[%clk
00:02:21]} {[%emt 00:00:27]} 36. Kb3 {[%clk 00:01:04]} Qb6+ {[%clk 00:02:04]}
{[%emt 00:00:11]} 37. Kc3 {[%clk 00:01:06]} {[%emt 00:00:04]} Qxa6 {[%clk
00:02:00]} {[%emt 00:00:08]} 38. Qf4+ {[%clk 00:01:07]} {[%emt 00:00:11]} Ke7
{[%clk 00:01:51]} 39. c5 {[%clk 00:00:50]} {[%emt 00:00:17]} Qa3+ {[%clk
00:01:52]} {[%emt 00:00:41]} 40. Kd2 {[%clk 00:00:28]} Qxa2+ {[%clk 00:01:50]}
41. Ke3 {[%clk 00:00:20]} {[%emt 00:00:04]} Qa3+ {[%clk 00:01:44]} {[%emt
00:00:06]} 42. Ke2 {[%clk 00:00:21]} {[%emt 00:00:29]} Qb2+ {[%clk 00:01:38]}
43. Kf3 {[%clk 00:00:21]} Qb3+ {[%clk 00:01:25]} {[%emt 00:00:14]} 44. Kf2
{[%clk 00:00:20]} Qc2+ {[%clk 00:01:17]} {[%emt 00:00:04]} 45. Kf3 {[%clk
00:00:20]} {[%emt 00:00:03]} Qxc5 {[%clk 00:01:12]} {[%emt 00:00:30]} 46. Qxh6
{[%clk 00:00:22]} {[%emt 00:00:03]} Qf5+ {[%clk 00:01:08]} 47. Ke2 {[%clk
00:00:19]} Kf7 {[%clk 00:00:56]} {[%emt 00:00:07]} 48. Qh8 {[%clk 00:00:16]}
{[%emt 00:00:15]} Qg4+ {[%clk 00:00:47]} 49. Kf2 {[%clk 00:00:18]} Qg8 {[%clk
00:00:42]} {[%emt 00:00:13]} 50. Qh5+ {[%clk 00:00:18]} Qg6 {[%clk 00:00:42]}
{[%emt 00:00:10]} 51. Qh8 {[%clk 00:00:19]} e5 {[%clk 00:00:41]} 52. Qc8 {[%clk
00:00:17]} {[%emt 00:00:07]} Qe4 {[%clk 00:00:31]} {[%emt 00:00:16]} 53. Qh3
{[%clk 00:00:10]} {[%emt 00:00:13]} Qf4+ {[%clk 00:00:31]} {[%emt 00:00:17]} 54.
Ke2 {[%clk 00:00:12]} Qc4+ {[%clk 00:00:32]} 55. Kf2 {[%clk 00:00:14]} Qc5+
{[%clk 00:00:34]} 56. Ke2 {[%clk 00:00:16]} Qc2+ {[%clk 00:00:35]} 57. Kf1
{[%clk 00:00:16]} Qd1+ {[%clk 00:00:32]} {[%emt 00:00:04]} 58. Kf2 {[%clk
00:00:18]} Qd2+ {[%clk 00:00:33]} 59. Kf1 {[%clk 00:00:20]} Qd4 {[%clk
00:00:30]} 60. Qh5+ {[%clk 00:00:20]} {[%emt 00:00:05]} Ke7 {[%clk 00:00:31]}
61. Qh7+ {[%clk 00:00:21]} {[%emt 00:00:03]} Kd6 {[%clk 00:00:30]} {[%emt
00:00:07]} 62. Qg7 {[%clk 00:00:10]} {[%emt 00:00:18]} Qd3+ {[%clk 00:00:30]}
63. Kf2 {[%clk 00:00:12]} Qf5+ {[%clk 00:00:32]} 64. Ke2 {[%clk 00:00:14]} Kd5
{[%clk 00:00:31]} {[%emt 00:00:03]} 65. Qb7+ {[%clk 00:00:15]} Kd6 {[%clk
00:00:29]} {[%emt 00:00:06]} 66. Qb6+ {[%clk 00:00:16]} Ke7 {[%clk 00:00:30]}
{[%emt 00:00:03]} 67. Qc5+ {[%clk 00:00:17]} {[%emt 00:00:07]} Kf7 {[%clk
00:00:31]} 68. Qc7+ {[%clk 00:00:16]} Kg6 {[%clk 00:00:32]} {[%emt 00:00:08]}
69. Qc6 {[%clk 00:00:17]} Qg4+ {[%clk 00:00:29]} {[%emt 00:00:06]} 70. Kf2
{[%clk 00:00:19]} Qd4+ {[%clk 00:00:31]} 71. Kf1 {[%clk 00:00:20]} Kf5 {[%clk
00:00:29]} {[%emt 00:00:13]} 72. g3 {[%clk 00:00:09]} {[%emt 00:00:11]} Qd3+
{[%clk 00:00:22]} {[%emt 00:00:03]} 73. Kf2 {[%clk 00:00:09]} {[%emt 00:00:08]}
Qd2+ {[%clk 00:00:24]} 74. Kf3 {[%clk 00:00:09]} Qd1+ {[%clk 00:00:16]} {[%emt
00:00:12]} 75. Kg2 {[%clk 00:00:11]} {[%emt 00:00:04]} Qd4 {[%clk 00:00:13]}
{[%emt 00:00:16]} 76. Kh3 {[%clk 00:00:12]} {[%emt 00:00:04]} Qg4+ {[%clk
00:00:14]} 77. Kg2 {[%clk 00:00:13]} Qe4+ {[%clk 00:00:17]} 78. Qxe4+ {[%clk
00:00:14]} Kxe4 {[%clk 00:00:19]} 79. Kf2 {[%clk 00:00:15]} Kd3 {[%clk
00:00:20]} 80. g4 {[%clk 00:00:15]} {[%emt 00:00:13]} e4 {[%clk 00:00:20]} 81.
Kf1 {[%clk 00:00:07]} Kd2 {[%clk 00:00:21]} {[%emt 00:00:21]} 0-1

[Event "II Open Internacional Ateneo Marítimo (60 Aniversario)"]
[Site "C/La reina 68 (Valencia), Spain"]
[Date "2018.09.15"]
[Round "3.5"]
[White "Diaz Velandia, Jose Manuel"]
[Black "Kovacevic, Slobodan"]
[Result "1/2-1/2"]
[TimeControl "7m+3s por jugada"]
[WhiteFideId "3901939"]
[BlackFideId "902152"]
[WhiteElo "2368"]
[BlackElo "2252"]

1. Nf3 {[%clk 00:07:05]} {[%emt 00:00:54]} c5 {[%clk 00:07:05]} 2. g3 {[%clk
00:07:07]} b6 {[%clk 00:07:06]} 3. Bg2 {[%clk 00:07:09]} Bb7 {[%clk 00:07:08]}
4. O-O {[%clk 00:07:10]} Nf6 {[%clk 00:07:10]} 5. e3 {[%clk 00:07:12]} e6
{[%clk 00:07:11]} 6. d4 {[%clk 00:07:14]} cxd4 {[%clk 00:07:13]} 7. exd4 {[%clk
00:07:16]} d6 {[%clk 00:07:15]} 8. c3 {[%clk 00:07:18]} Be7 {[%clk 00:07:16]} 9.
Re1 {[%clk 00:07:21]} O-O {[%clk 00:07:18]} 10. Nbd2 {[%clk 00:07:22]} a6
{[%clk 00:07:17]} 11. Nh4 {[%clk 00:07:24]} Bxg2 {[%clk 00:07:15]} 12. Nxg2
{[%clk 00:07:26]} Re8 {[%clk 00:07:13]} {[%emt 00:00:11]} 13. Ne4 {[%clk
00:07:28]} Nxe4 {[%clk 00:07:09]} 14. Rxe4 {[%clk 00:07:30]} Nd7 {[%clk
00:07:11]} 15. Re1 {[%clk 00:07:31]} Qc7 {[%clk 00:07:04]} {[%emt 00:00:06]} 16.
Qf3 {[%clk 00:07:30]} h6 {[%clk 00:06:48]} {[%emt 00:00:13]} 17. Nf4 {[%clk
00:07:32]} {[%emt 00:00:10]} Nf6 {[%clk 00:06:44]} 18. Nh5 {[%clk 00:07:34]}
Nxh5 {[%clk 00:06:06]} {[%emt 00:00:40]} 19. Qxh5 {[%clk 00:07:36]} {[%emt
00:00:31]} d5 {[%clk 00:06:03]} {[%emt 00:00:04]} 20. Qg4 {[%clk 00:07:38]} Kh7
{[%clk 00:05:57]} 21. Bf4 {[%clk 00:07:38]} Bd6 {[%clk 00:05:58]} 22. Bxd6
{[%clk 00:07:36]} Qxd6 {[%clk 00:06:00]} {[%emt 00:00:06]} 23. Re3 {[%clk
00:07:34]} b5 {[%clk 00:05:57]} 24. a3 {[%clk 00:07:13]} {[%emt 00:00:23]} a5
{[%clk 00:05:58]} {[%emt 00:00:25]} 25. Ree1 {[%clk 00:07:03]} {[%emt
00:00:13]} b4 {[%clk 00:05:57]} 26. axb4 {[%clk 00:07:05]} axb4 {[%clk
00:05:59]} 27. Qe2 {[%clk 00:06:58]} bxc3 {[%clk 00:05:47]} {[%emt 00:00:08]}
28. bxc3 {[%clk 00:07:00]} Rec8 {[%clk 00:05:47]} {[%emt 00:00:47]} 29. Rxa8
{[%clk 00:06:44]} Rxa8 {[%clk 00:05:49]} 30. Rc1 {[%clk 00:06:42]} Rc8 {[%clk
00:05:36]} 31. c4 {[%clk 00:06:44]} {[%emt 00:00:03]} dxc4 {[%clk 00:05:20]}
{[%emt 00:00:14]} 32. Rxc4 {[%clk 00:06:46]} {[%emt 00:00:39]} Rb8 {[%clk
00:05:04]} {[%emt 00:00:03]} 33. Qc2+ {[%clk 00:06:45]} Kg8 {[%clk 00:04:50]}
{[%emt 00:00:07]} 34. Rc8+ {[%clk 00:06:45]} {[%emt 00:00:08]} Rxc8 {[%clk
00:04:52]} 35. Qxc8+ {[%clk 00:06:47]} Kh7 {[%clk 00:04:52]} 36. Qc5 {[%clk
00:06:44]} Qb8 {[%clk 00:04:40]} {[%emt 00:00:14]} 37. h4 {[%clk 00:06:33]}
{[%emt 00:00:22]} Qb1+ {[%clk 00:04:37]} 38. Kh2 {[%clk 00:06:32]} {[%emt
00:00:09]} Qe4 {[%clk 00:04:30]} {[%emt 00:00:09]} 39. Qa7 {[%clk 00:06:24]}
{[%emt 00:00:17]} Qf3 {[%clk 00:04:14]} {[%emt 00:00:05]} 40. Kg1 {[%clk
00:06:25]} {[%emt 00:00:09]} g5 {[%clk 00:03:46]} {[%emt 00:01:03]} 41. hxg5
{[%clk 00:06:25]} hxg5 {[%clk 00:03:48]} 42. Qc5 {[%clk 00:06:26]} Kg6 {[%clk
00:03:45]} 43. Qe5 {[%clk 00:06:25]} {[%emt 00:00:07]} Qd3 {[%clk 00:03:34]} 44.
Qc5 {[%clk 00:06:24]} Qe4 {[%clk 00:03:29]} 45. Qd6 {[%clk 00:06:16]} {[%emt
00:00:13]} Qf5 {[%clk 00:03:15]} {[%emt 00:00:13]} 46. Qd8 {[%clk 00:06:15]}
{[%emt 00:00:35]} Kg7 {[%clk 00:03:07]} {[%emt 00:00:03]} 47. Qd6 {[%clk
00:06:17]} Kg6 {[%clk 00:03:01]} 48. Qd8 {[%clk 00:06:19]} Kg7 {[%clk
00:02:57]} {[%emt 00:00:03]} 49. Kg2 {[%clk 00:06:21]} Qe4+ {[%clk 00:02:55]}
50. Kg1 {[%clk 00:06:23]} Qe1+ {[%clk 00:02:56]} {[%emt 00:00:04]} 51. Kg2
{[%clk 00:06:25]} {[%emt 00:00:03]} Qe4+ {[%clk 00:02:58]} 52. Kg1 {[%clk
00:06:27]} Qe1+ {[%clk 00:03:01]} 53. Kg2 {[%clk 00:06:27]} {[%emt 00:00:05]}
Qe4+ {[%clk 00:03:03]} 54. Kh2 {[%clk 00:06:29]} Qf5 {[%clk 00:03:02]} {[%emt
00:00:13]} 55. Kg1 {[%clk 00:06:26]} Qb1+ {[%clk 00:03:03]} 56. Kg2 {[%clk
00:06:28]} Qe4+ {[%clk 00:03:06]} 57. Kg1 {[%clk 00:06:31]} Qb1+ {[%clk
00:03:08]} 1/2-1/2